bitfinex-derivatives/quotes_BNBF0:USTF0_20250101
["timestamp","ask_amount","ask_price","bid_price","bid_amount"]
[1735720522648,1.05985319,703.81,702.92,0.28452739]
[1735720523250,1.05985319,703.85,702.92,0.28452739]
[1735720523550,0.26172784,703.84,702.92,0.28452739]
[1735720523744,0.26172935,703.83,702.92,0.28452739]
[1735720523946,1.05985319,703.85,702.92,0.28452739]
[1735720524145,0.26173042,703.84,702.92,0.28452739]
[1735720524345,0.26173042,703.83,702.92,0.28452739]
[1735720524548,1.05985319,703.88,702.92,0.28452739]
[1735720524749,0.26173042,703.87,702.92,0.28452739]
[1735720524947,0.26172038,703.86,702.92,0.28452739]
[1735720525253,1.05985319,703.88,702.92,0.28452739]
[1735720525447,0.2617201,703.87,702.92,0.28452739]
[1735720525652,1.05985319,703.88,702.92,0.28452739]
[1735720525853,0.26171874,703.87,702.92,0.28452739]
[1735720526750,0.26171874,703.86,702.92,0.28452739]
[1735720526952,1.05985319,703.92,702.92,0.28452739]
[1735720527153,0.26172112,703.91,702.92,0.28452739]
[1735720527549,0.26171867,703.9,702.92,0.28452739]
[1735720527749,0.26171867,703.89,702.92,0.28452739]
[1735720527952,1.05985319,703.93,702.92,0.28452739]
[1735720527953,0.26171867,703.88,702.92,0.28452739]
[1735720528249,0.26171867,703.87,702.92,0.28452739]
[1735720528454,0.26171867,703.92,702.92,0.28452739]
[1735720528655,0.26171867,703.91,702.92,0.28452739]
[1735720528852,0.26171867,703.9,702.92,0.28452739]
[1735720529059,0.26171867,703.89,702.92,0.28452739]
[1735720529256,1.05985319,703.93,702.92,0.28452739]
[1735720529457,0.26167726,703.92,702.92,0.28452739]
[1735720529860,1.05985319,703.86,702.92,0.28452739]
[1735720531154,1.05985319,704.05,703.0,1.0621168]
[1735720531356,0.26167131,704.04,703.0,1.0621168]
[1735720532362,0.26167131,704.04,702.92,0.28452739]
[1735720532555,0.26167131,704.03,702.92,0.28452739]
[1735720532759,0.26166955,704.02,702.92,0.28452739]
[1735720532960,1.4841984,704.1,702.92,0.28452739]
[1735720533155,0.26166986,704.09,702.92,0.28452739]
[1735720533460,1.05985319,704.15,702.92,0.28452739]
[1735720533661,0.26163936,704.14,702.92,0.28452739]
[1735720534454,0.26163936,704.14,702.94,1.0621168]
[1735720534653,0.26163936,704.23,702.94,1.0621168]
[1735720534859,0.26163936,704.22,702.96,0.2845112]
[1735720535059,0.26163936,704.21,702.96,0.2845112]
[1735720535261,0.26163517,704.2,702.96,0.2845112]
[1735720535462,0.26163517,704.19,702.96,0.2845112]
[1735720535662,0.26163517,704.18,702.96,0.2845112]
[1735720535862,0.26163517,704.17,702.96,0.2845112]
[1735720536060,0.26163517,704.16,702.96,0.2845112]
[1735720536261,0.26163517,704.15,702.96,0.2845112]
[1735720536461,0.26163517,704.14,702.96,0.2845112]
[1735720536662,0.26163517,704.13,702.96,0.2845112]
[1735720536864,0.26163517,704.12,702.96,0.2845112]
[1735720537162,0.26163537,704.11,702.96,0.2845112]
[1735720537362,1.48396107,704.25,702.96,0.2845112]
[1735720537662,0.26163562,704.24,702.96,0.2845112]
[1735720537860,0.26163562,704.23,702.96,0.2845112]
[1735720538163,0.26163562,704.22,702.96,0.2845112]
[1735720538361,0.26163562,704.21,702.96,0.2845112]
[1735720538563,0.26163562,704.2,702.96,0.2845112]
[1735720538763,0.26163562,704.19,702.96,0.2845112]
[1735720538963,0.26163562,704.18,702.96,0.2845112]
[1735720539158,0.26163562,704.17,702.96,0.2845112]
[1735720539361,0.26163562,704.16,702.96,0.2845112]
[1735720539659,0.26163562,704.15,702.96,0.2845112]
[1735720539857,0.26163562,704.14,702.96,0.2845112]
[1735720540059,0.26163562,704.13,702.96,0.2845112]
[1735720540260,0.26163562,704.12,702.96,0.2845112]
[1735720540561,0.26163816,704.11,702.96,0.2845112]
[1735720540757,1.48396107,704.25,702.96,0.2845112]
[1735720540758,0.26163816,704.1,702.96,0.2845112]
[1735720540957,0.26163816,704.09,702.96,0.2845112]
[1735720541263,0.26163816,704.08,702.96,0.2845112]
[1735720541564,0.26163816,704.07,702.96,0.2845112]
[1735720541763,0.26163816,704.06,702.96,0.2845112]
[1735720541958,0.26163816,704.05,702.96,0.2845112]
[1735720542162,0.26163816,704.04,702.96,0.2845112]
[1735720542362,1.48396107,704.25,702.96,1.346628]
[1735720542363,0.26163816,704.03,702.96,1.346628]
[1735720542662,1.48396107,704.25,702.96,1.346628]
[1735720542663,0.26163816,704.02,702.96,1.346628]
[1735720542864,0.26163816,704.01,702.96,1.346628]
[1735720543059,0.26163816,704.24,702.96,1.346628]
[1735720543259,0.26163816,704.23,702.96,1.346628]
[1735720543459,0.26163816,704.22,702.96,0.2845112]
[1735720543660,0.26163816,704.21,702.96,0.2845112]
[1735720543864,0.26163816,704.2,702.96,0.2845112]
[1735720544167,0.26163816,704.19,702.96,0.2845112]
[1735720544362,0.26163816,704.18,702.96,0.2845112]
[1735720544563,0.26163816,704.17,702.96,0.2845112]
[1735720544763,1.05985319,704.28,702.96,0.2845112]
[1735720544764,0.26163816,704.16,702.96,0.2845112]
[1735720544963,0.26163816,704.15,702.96,0.2845112]
[1735720545163,0.26163816,704.14,702.96,0.2845112]
[1735720545363,0.26163816,704.13,702.96,0.2845112]
[1735720545564,0.26163816,704.12,702.96,0.2845112]
[1735720545865,0.26163884,704.11,702.96,0.2845112]
[1735720546065,0.26163884,704.1,702.96,0.2845112]
[1735720546265,0.26163884,704.09,702.96,0.2845112]
[1735720546567,0.26163783,704.08,702.96,0.2845112]
[1735720546766,1.4838767,704.19,702.96,0.2845112]
[1735720546767,0.26163783,704.07,702.96,0.2845112]
[1735720546969,0.26163783,704.06,702.96,0.2845112]
[1735720547268,0.26163783,704.05,702.96,0.2845112]
[1735720547468,0.26163783,704.04,702.96,0.2845112]
[1735720547662,0.26163783,704.03,702.96,0.2845112]
[1735720547869,1.05985319,704.28,702.96,0.2845112]
[1735720548071,0.26162015,704.27,702.96,0.2845112]
[1735720548563,0.2616211,704.26,702.96,0.2845112]
[1735720548767,0.2616211,704.25,702.96,0.2845112]
[1735720548970,0.2616211,704.24,702.96,0.2845112]
[1735720549171,0.2616211,704.23,702.96,0.2845112]
[1735720549371,0.2616211,704.22,702.96,0.2845112]
[1735720549565,0.2616211,704.21,702.96,0.2845112]
[1735720549769,0.2616211,704.2,702.96,0.2845112]
[1735720549967,0.2616211,704.19,702.96,0.2845112]
[1735720550166,0.2616211,704.18,702.96,0.2845112]
[1735720550367,0.2616211,704.17,702.96,0.2845112]
[1735720550673,1.48385561,704.29,702.96,0.2845112]
[1735720560678,0.26158264,704.28,702.96,0.2845112]
[1735720561282,0.26158264,704.28,703.09,1.0621168]
[1735720561681,0.26158264,704.27,703.09,1.0621168]
[1735720561883,0.26159615,704.26,703.09,1.0621168]
[1735720562082,0.26159615,704.25,703.09,1.0621168]
[1735720562281,0.26159615,704.24,703.09,1.0621168]
[1735720562478,0.26159615,704.23,703.11,1.0621168]
[1735720562683,0.26159615,704.22,703.11,1.0621168]
[1735720562879,0.26159615,704.21,703.11,1.0621168]
[1735720563080,0.26159615,704.2,703.11,1.0621168]
[1735720563283,0.26159615,704.19,703.11,1.0621168]
[1735720563483,0.26159615,704.18,703.11,1.0621168]
[1735720563786,0.26158918,704.17,703.14,1.0621168]
[1735720563986,0.26158918,704.16,703.14,1.0621168]
[1735720564280,1.05985319,704.33,703.14,1.0621168]
[1735720564487,0.26156853,704.32,703.14,1.0621168]
[1735720564787,0.26156853,704.32,703.22,1.0621168]
[1735720565083,0.26156853,704.31,703.23,0.28440197]
[1735720565281,0.26156853,704.3,703.23,0.28440197]
[1735720565483,0.26156853,704.29,703.23,0.28440197]
[1735720565681,0.26156853,704.28,703.23,0.28440197]
[1735720565885,0.26156853,704.27,703.23,0.28440197]
[1735720566084,0.26156853,704.26,703.23,0.28440197]
[1735720566282,0.26157718,704.25,703.23,0.28440197]
[1735720566581,0.26157718,704.24,703.23,0.28440197]
[1735720566785,0.26157718,704.23,703.23,0.28440197]
[1735720566987,0.26157718,704.29,703.23,0.28440197]
[1735720567286,0.26157718,704.28,703.23,0.28440197]
[1735720567487,0.26157718,704.27,703.23,0.28440197]
[1735720567681,0.26157718,704.26,703.23,0.28440197]
[1735720567885,0.26157718,704.33,703.23,0.28440197]
[1735720568187,0.26157718,704.32,703.23,0.28440197]
[1735720568382,0.26157718,704.31,703.23,0.28440197]
[1735720568587,0.26157718,704.3,703.23,0.28440197]
[1735720568787,0.26158811,704.29,703.23,0.28440197]
[1735720568984,0.26158811,704.28,703.23,0.28440197]
[1735720569186,0.26158811,704.27,703.23,0.28440197]
[1735720569482,0.26158868,704.26,703.23,0.28440197]
[1735720569682,0.26158868,704.25,703.23,0.28440197]
[1735720569887,0.26158868,704.24,703.23,0.28440197]
[1735720570080,2.5434663,704.34,703.23,0.28440197]
[1735720570081,0.26158868,704.23,703.23,0.28440197]
[1735720570282,2.5434663,704.34,703.23,0.28440197]
[1735720570484,0.26158592,704.33,703.23,0.28440197]
[1735720570685,2.5434663,704.34,703.23,0.28440197]
[1735720571595,1.48361311,704.34,703.23,0.28440197]
[1735720579798,1.05985319,704.93,703.23,0.28440197]
[1735720579997,1.48364474,704.49,703.23,0.28440197]
[1735720580191,1.05985319,704.93,703.23,0.28440197]
[1735720580391,1.48354459,704.52,703.23,0.28440197]
[1735720580799,1.05985319,704.93,703.23,0.28440197]
[1735720580999,1.48353932,704.51,703.23,0.28440197]
[1735720581197,1.05985319,704.97,703.23,0.28440197]
[1735720581398,0.2615354,704.96,703.23,0.28440197]
[1735720581997,1.05985319,704.74,703.23,0.28440197]
[1735720582191,0.26153553,704.73,703.23,0.28440197]
[1735720583398,1.05985319,704.71,703.23,0.28440197]
[1735720583799,0.26154368,704.7,703.23,0.28440197]
[1735720584497,1.32139687,704.7,703.23,0.28440197]
[1735720584696,0.26154368,704.69,703.23,0.28440197]
[1735720584897,0.26154036,704.69,703.23,0.28440197]
[1735720585597,0.26154049,704.68,703.23,0.28440197]
[1735720585800,1.05985319,704.44,703.28,1.0621168]
[1735720585998,0.26154049,704.43,703.3,0.28437366]
[1735720586603,1.32139368,704.43,703.3,0.28437366]
[1735720586801,0.26154049,704.42,703.3,0.28437366]
[1735720587896,0.26154049,704.41,703.3,0.28437366]
[1735720588095,0.26154049,704.4,703.3,0.28437366]
[1735720588295,1.05985319,704.45,703.3,0.28437366]
[1735720588499,0.26152495,704.44,703.3,0.28437366]
[1735720589098,0.26152495,704.44,703.31,1.0621168]
[1735720589398,0.26152495,704.43,703.33,0.28436153]
[1735720589599,0.26152495,704.42,703.33,0.28436153]
[1735720589799,0.26152495,704.41,703.33,0.28436153]
[1735720590003,0.26152495,704.4,703.33,0.28436153]
[1735720590197,1.05985319,704.5,703.33,0.28436153]
[1735720590397,0.26151431,704.49,703.33,0.28436153]
[1735720591302,0.26151431,704.49,703.33,1.34647833]
[1735720591498,0.26151431,704.48,703.33,1.34647833]
[1735720591700,0.26151431,704.47,703.33,1.34647833]
[1735720591899,0.26151431,704.46,703.33,1.34647833]
[1735720592104,0.26151431,704.45,703.33,1.34647833]
[1735720592405,0.26151431,704.44,703.34,1.0621168]
[1735720592605,0.26152424,704.43,703.34,1.0621168]
[1735720592803,1.05985319,704.53,703.34,1.0621168]
[1735720593105,0.26153509,704.52,703.36,0.2843494]
[1735720593502,1.05985319,704.42,703.37,1.0621168]
[1735720593804,0.26153008,704.41,703.38,0.28434132]
[1735720594404,1.05985319,704.42,703.38,0.28434132]
[1735720594602,0.26152085,704.41,703.38,0.28434132]
[1735720594998,0.26152085,704.4,703.38,0.28434132]
[1735720595202,1.05985319,704.48,703.38,0.28434132]
[1735720595402,0.26152242,704.47,703.38,0.28434132]
[1735720595602,0.26153393,704.46,703.38,0.28434132]
[1735720595800,0.26153393,704.45,703.38,0.28434132]
[1735720596106,0.26153393,704.44,703.38,0.28434132]
[1735720596299,0.26153393,704.43,703.38,0.28434132]
[1735720596503,0.26153393,704.42,703.38,0.28434132]
[1735720596702,0.26153555,704.41,703.38,0.28434132]
[1735720596901,1.05985319,704.5,703.38,0.28434132]
[1735720597207,1.05985319,704.46,703.38,0.28434132]
[1735720597402,0.26155403,704.45,703.38,0.28434132]
[1735720597807,0.26158377,704.44,703.38,0.28434132]
[1735720598004,1.05985319,704.46,703.38,0.28434132]
[1735720598205,1.48313362,704.56,703.38,0.28434132]
[1735720598206,0.2615943,704.45,703.38,0.28434132]
[1735720598407,0.2615943,704.44,703.38,0.28434132]
[1735720598706,1.05985319,704.49,703.38,0.28434132]
[1735720598707,0.2615943,704.43,703.38,0.28434132]
[1735720598908,0.2615943,704.42,703.38,0.28434132]
[1735720599107,0.2615943,704.41,703.38,0.28434132]
[1735720599404,0.2615943,704.4,703.38,0.28434132]
[1735720599603,0.2615943,704.39,703.38,0.28434132]
[1735720599805,1.05985319,704.44,703.38,0.28434132]
[1735720600410,1.05985319,704.5,703.38,0.28434132]
[1735720600804,0.26158279,704.49,703.38,0.28434132]
[1735720601409,0.26157983,704.48,703.38,0.28434132]
[1735720601611,0.26157983,704.47,703.38,0.28434132]
[1735720601917,0.26158058,704.46,703.38,0.28434132]
[1735720602115,1.05985319,704.52,703.38,0.28434132]
[1735720603015,1.05985319,704.64,703.38,0.28434132]
[1735720603210,0.26151496,704.63,703.38,0.28434132]
[1735720603409,0.2615182,704.62,703.38,0.28434132]
[1735720603612,0.2615182,704.61,703.38,0.28434132]
[1735720603809,1.05985319,704.64,703.38,0.28434132]
[1735720604011,0.26152457,704.63,703.38,0.28434132]
[1735720606919,1.48317576,704.62,703.38,0.28434132]
[1735720608217,0.26151367,704.61,703.38,0.28434132]
[1735720608621,0.26152105,704.6,703.38,0.28434132]
[1735720608824,0.26152105,704.59,703.38,0.28434132]
[1735720609024,0.26152105,704.58,703.38,0.28434132]
[1735720609224,0.26151584,704.57,703.38,0.28434132]
[1735720609425,0.26151616,704.56,703.38,0.28434132]
[1735720609618,0.26151616,704.55,703.38,0.28434132]
[1735720609823,0.26151616,704.54,703.38,0.28434132]
[1735720610021,0.26151616,704.53,703.38,0.28434132]
[1735720610224,1.05985319,704.6,703.38,0.28434132]
[1735720610424,0.26151604,704.59,703.38,0.28434132]
[1735720611426,0.26151726,704.58,703.38,0.28434132]
[1735720611620,0.26151726,704.57,703.38,0.28434132]
[1735720611825,0.26151726,704.56,703.38,0.28434132]
[1735720612019,0.26151726,704.55,703.38,0.28434132]
[1735720612223,0.26151726,704.54,703.38,0.28434132]
[1735720612526,0.26151726,704.53,703.38,0.28434132]
[1735720612727,0.26151726,704.52,703.38,0.28434132]
[1735720612927,0.26151726,704.51,703.38,0.28434132]
[1735720613227,0.26151726,704.5,703.38,0.28434132]
[1735720613428,0.26151726,704.49,703.38,0.28434132]
[1735720613728,0.26151726,704.48,703.38,0.28434132]
[1735720613930,0.26151726,704.56,703.38,0.28434132]
[1735720614229,0.26151223,704.55,703.38,0.28434132]
[1735720614431,1.05985319,704.48,703.41,1.0621168]
[1735720614730,0.26151223,704.47,703.42,0.28432515]
[1735720615029,1.05985319,704.48,703.42,0.28432515]
[1735720615429,1.05985319,704.57,703.42,0.28432515]
[1735720615630,0.2614824,704.56,703.42,0.28432515]
[1735720616731,0.26148324,704.55,703.42,0.28432515]
[1735720616931,0.26148324,704.54,703.42,0.28432515]
[1735720617133,0.26148324,704.53,703.42,1.34644195]
[1735720617333,0.26149124,704.52,703.42,1.34644195]
[1735720617535,0.26149124,704.51,703.42,1.34644195]
[1735720617832,0.26149124,704.5,703.42,1.34644195]
[1735720618028,1.05985319,704.6,703.42,1.34644195]
[1735720618234,0.26149591,704.59,703.42,0.28432515]
[1735720618527,0.26149591,704.58,703.42,0.28432515]
[1735720618734,0.26149591,704.57,703.42,0.28432515]
[1735720618933,0.26149591,704.56,703.42,0.28432515]
[1735720619127,0.26149591,704.55,703.42,0.28432515]
[1735720619334,1.48317576,704.62,703.42,0.28432515]
[1735720619335,0.26149591,704.54,703.42,0.28432515]
[1735720619632,0.26149591,704.53,703.42,0.28432515]
[1735720619833,0.26149591,704.52,703.42,0.28432515]
[1735720620033,0.26149591,704.51,703.42,0.28432515]
[1735720620234,0.26149591,704.5,703.42,0.28432515]
[1735720620433,0.26149591,704.49,703.42,0.28432515]
[1735720620833,0.26149591,704.48,703.42,0.28432515]
[1735720621036,0.26149591,704.47,703.42,0.28432515]
[1735720621233,0.26149591,704.46,703.42,0.28432515]
[1735720621433,0.26149591,704.45,703.42,0.28432515]
[1735720621628,0.26149591,704.44,703.42,0.28432515]
[1735720621831,1.48311781,704.53,703.42,0.28432515]
[1735720622034,0.26150916,704.52,703.42,0.28432515]
[1735720623837,1.48311781,704.53,703.42,0.28432515]
[1735720623838,0.26151096,704.51,703.42,0.28432515]
[1735720624039,0.26151096,704.5,703.42,0.28432515]
[1735720624239,0.26151096,704.49,703.42,0.28432515]
[1735720624438,0.26151096,704.48,703.42,0.28432515]
[1735720624636,0.26151096,704.47,703.42,0.28432515]
[1735720624837,0.26151096,704.46,703.42,0.28432515]
[1735720625039,0.26151096,704.45,703.42,0.28432515]
[1735720625237,1.48311781,704.53,703.42,0.28432515]
[1735720625540,0.26150032,704.52,703.42,0.28432515]
[1735720625941,0.26150032,704.51,703.42,0.28432515]
[1735720626142,0.26150032,704.5,703.42,0.28432515]
[1735720626442,0.26149521,704.49,703.42,0.28432515]
[1735720626740,1.05985319,704.58,703.42,0.28432515]
[1735720626741,0.26149521,704.48,703.42,0.28432515]
[1735720626937,1.05985319,704.58,703.42,0.28432515]
[1735720627136,0.26149716,704.57,703.42,0.28432515]
[1735720627643,0.26149716,704.56,703.42,0.28432515]
[1735720627841,0.26149716,704.55,703.42,0.28432515]
[1735720628140,0.26149716,704.54,703.42,0.28432515]
[1735720628335,0.26149716,704.53,703.42,0.28432515]
[1735720628538,0.26149716,704.52,703.42,0.28432515]
[1735720628736,0.26149716,704.51,703.42,0.28432515]
[1735720628936,0.26148374,704.58,703.42,0.28432515]
[1735720629137,0.26148545,704.57,703.42,0.28432515]
[1735720629338,0.26148545,704.56,703.42,0.28432515]
[1735720629542,0.26148545,704.55,703.42,0.28432515]
[1735720629744,0.26148545,704.54,703.42,0.28432515]
[1735720629942,0.26148545,704.53,703.42,0.28432515]
[1735720630143,0.26148545,704.52,703.42,0.28432515]
[1735720630442,0.26148545,704.51,703.42,0.28432515]
[1735720630643,0.26148545,704.5,703.42,0.28432515]
[1735720630844,0.26148545,704.49,703.42,0.28432515]
[1735720631046,1.48314415,704.62,703.42,0.28432515]
[1735720631342,0.26148662,704.61,703.42,0.28432515]
[1735720631538,1.48314415,704.62,703.42,0.28432515]
[1735720650055,0.26147289,704.61,703.42,0.28432515]
[1735720650251,0.26147289,704.61,703.45,1.0621168]
[1735720650451,1.48314415,704.62,703.45,1.0621168]
[1735720650646,0.26147243,704.61,703.45,1.0621168]
[1735720651149,0.26147243,704.61,703.49,1.0621168]
[1735720651150,1.05985319,704.6,703.49,1.0621168]
[1735720651350,0.26147243,704.59,703.51,0.28428878]
[1735720653157,0.26147283,704.58,703.51,0.28428878]
[1735720653358,0.26147283,704.57,703.51,0.28428878]
[1735720653558,0.26147283,704.56,703.51,0.28428878]
[1735720653759,0.26147283,704.55,703.51,0.28428878]
[1735720653958,0.26147283,704.54,703.51,0.28428878]
[1735720654151,0.26149352,704.53,703.51,0.28428878]
[1735720654459,0.26149352,704.52,703.51,0.28428878]
[1735720654660,0.26149352,704.51,703.51,0.28428878]
[1735720654856,0.26149352,704.5,703.51,0.28428878]
[1735720655053,0.26149352,704.49,703.51,0.28428878]
[1735720655252,0.26149352,704.48,703.51,0.28428878]
[1735720655455,0.26149352,704.47,703.51,0.28428878]
[1735720655653,1.05985319,704.54,703.51,0.28428878]
[1735720655859,1.05985319,704.46,703.51,1.34640558]
[1735720656961,2.54268662,704.83,703.51,0.28428878]
[1735720657961,0.26141571,704.82,703.51,0.28428878]
[1735720658163,0.26141571,704.82,703.54,1.0621168]
[1735720658564,0.26141571,704.82,703.56,0.28426857]
[1735720659566,1.05985319,704.8,703.56,1.34638537]
[1735720659761,0.26141571,704.79,703.56,1.34638537]
[1735720660762,0.26141571,704.78,703.56,1.34638537]
[1735720660959,0.26141571,704.77,703.56,1.34638537]
[1735720661163,0.26141792,704.76,703.56,1.34638537]
[1735720661366,0.26141792,704.75,703.57,1.0621168]
[1735720661665,0.26141792,704.74,703.59,0.28425645]
[1735720661866,1.05985319,704.81,703.59,0.28425645]
[1735720662167,0.26141946,704.8,703.59,0.28425645]
[1735720662760,0.26141946,704.79,703.59,0.28425645]
[1735720662965,0.26141946,704.78,703.59,0.28425645]
[1735720663168,0.26141946,704.77,703.59,0.28425645]
[1735720663365,1.05985319,704.82,703.59,0.28425645]
[1735720663366,0.26141946,704.76,703.59,0.28425645]
[1735720663564,0.26141946,704.75,703.59,0.28425645]
[1735720663766,0.2614213,704.74,703.59,0.28425645]
[1735720663961,1.05985319,704.82,703.59,0.28425645]
[1735720664268,0.26141845,704.81,703.59,0.28425645]
[1735720664464,1.05985319,704.82,703.59,0.28425645]
[1735720664465,0.26142046,704.8,703.59,0.28425645]
[1735720664666,0.26142046,704.79,703.59,0.28425645]
[1735720664865,1.48283343,704.83,703.59,0.28425645]
[1735720664866,0.26142046,704.78,703.59,0.28425645]
[1735720665067,0.26142046,704.77,703.59,0.28425645]
[1735720665262,0.26142046,704.76,703.59,0.28425645]
[1735720665562,1.48283343,704.83,703.59,0.28425645]
[1735720665768,0.26141217,704.82,703.59,0.28425645]
[1735720666567,0.26141274,704.81,703.59,0.28425645]
[1735720666767,0.26141274,704.8,703.59,0.28425645]
[1735720666968,0.26141274,704.79,703.59,0.28425645]
[1735720667169,0.26141274,704.78,703.59,0.28425645]
[1735720667368,0.26141274,704.77,703.59,0.28425645]
[1735720667666,0.26141274,704.76,703.59,0.28425645]
[1735720667863,1.48283343,704.83,703.59,0.28425645]
[1735720668070,0.26141357,704.82,703.59,0.28425645]
[1735720669170,0.26141875,704.81,703.59,0.28425645]
[1735720669363,0.26141875,704.8,703.59,0.28425645]
[1735720669563,0.26141875,704.79,703.59,0.28425645]
[1735720669766,0.26141875,704.78,703.59,0.28425645]
[1735720670067,0.26141875,704.77,703.59,0.28425645]
[1735720670267,0.26141875,704.76,703.59,0.28425645]
[1735720670469,0.26141875,704.75,703.59,0.28425645]
[1735720670669,0.26141875,704.74,703.59,0.28425645]
[1735720670866,1.48283343,704.83,703.59,0.28425645]
[1735720671070,0.2614136,704.82,703.59,0.28425645]
[1735720671870,0.26142677,704.81,703.59,0.28425645]
[1735720672170,0.26142677,704.8,703.59,0.28425645]
[1735720672469,1.48283343,704.83,703.59,0.28425645]
[1735720672670,0.26142265,704.82,703.59,0.28425645]
[1735720674671,0.26142798,704.81,703.59,0.28425645]
[1735720674873,0.26142798,704.8,703.59,0.28425645]
[1735720675172,0.26142798,704.79,703.59,0.28425645]
[1735720675369,1.48283343,704.83,703.59,0.28425645]
[1735720675370,0.26142798,704.78,703.59,0.28425645]
[1735720675568,0.26142798,704.77,703.59,0.28425645]
[1735720675774,1.48283343,704.83,703.59,0.28425645]
[1735720676368,0.26142675,704.82,703.59,0.28425645]
[1735720676574,1.48283343,704.83,703.59,0.28425645]
[1735720677876,0.26142751,704.82,703.59,0.28425645]
[1735720679775,0.2614514,704.81,703.59,0.28425645]
[1735720680076,0.2614514,704.8,703.59,0.28425645]
[1735720680276,0.2614514,704.79,703.59,0.28425645]
[1735720680576,0.26145495,704.78,703.59,0.28425645]
[1735720680771,0.26145495,704.77,703.59,0.28425645]
[1735720680969,0.26145495,704.76,703.59,0.28425645]
[1735720681175,0.26145495,704.75,703.59,0.28425645]
[1735720681377,0.26145495,704.74,703.59,0.28425645]
[1735720681578,1.48281237,704.74,703.59,0.28425645]
[1735720681778,0.261465,704.73,703.59,0.28425645]
[1735720682777,1.48281237,704.74,703.59,0.28425645]
[1735720691583,0.26144587,704.73,703.59,0.28425645]
[1735720692483,1.05985319,704.52,703.65,1.0621168]
[1735720692684,0.26144587,704.51,703.65,1.0621168]
[1735720694084,1.05985319,704.5,703.62,1.0621168]
[1735720694280,0.26144587,704.49,703.62,1.34636113]
[1735720694684,1.05985319,704.51,703.63,0.28424029]
[1735720694879,0.26144748,704.5,703.63,0.28424029]
[1735720696086,0.26144748,704.49,703.63,0.28424029]
[1735720696286,0.26144748,704.48,703.63,0.28424029]
[1735720696487,0.26144748,704.47,703.63,0.28424029]
[1735720696689,1.05985319,704.52,703.63,0.28424029]
[1735720697086,1.05985319,704.56,703.63,1.34635709]
[1735720697290,0.26145923,704.55,703.63,1.34635709]
[1735720697490,0.26145967,704.54,703.63,1.34635709]
[1735720697690,1.05985319,704.56,703.63,1.34635709]
[1735720697889,0.26145774,704.55,703.63,1.34635709]
[1735720698192,0.26145774,704.55,703.63,0.28424029]
[1735720698390,0.26145774,704.54,703.63,0.28424029]
[1735720698589,1.05985319,704.61,703.63,0.28424029]
[1735720698791,0.26145446,704.6,703.63,0.28424029]
[1735720699491,1.05985319,704.63,703.63,0.28424029]
[1735720699492,0.26145446,704.59,703.63,0.28424029]
[1735720699694,1.05985319,704.63,703.63,0.28424029]
[1735720699695,0.26145446,704.58,703.63,0.28424029]
[1735720699991,1.05985319,704.64,703.63,0.28424029]
[1735720700191,0.26145149,704.63,703.63,0.28424029]
[1735720701086,0.26145149,704.62,703.63,0.28424029]
[1735720701284,0.26145149,704.61,703.63,0.28424029]
[1735720701487,0.26145149,704.6,703.63,0.28424029]
[1735720701794,1.05985319,704.65,703.63,0.28424029]
[1735720702094,0.26145398,704.64,703.63,0.28424029]
[1735720702693,0.26145435,704.63,703.63,0.28424029]
[1735720702993,0.26145435,704.62,703.63,0.28424029]
[1735720703194,0.26145435,704.61,703.63,0.28424029]
[1735720703394,0.26145435,704.6,703.63,0.28424029]
[1735720703594,2.54273928,704.66,703.63,0.28424029]
[1735720703797,0.26145317,704.65,703.63,0.28424029]
[1735720705499,0.26145819,704.64,703.63,0.28424029]
[1735720705700,0.26145819,704.63,703.63,0.28424029]
[1735720705999,0.26145819,704.62,703.63,0.28424029]
[1735720706296,0.26145819,704.61,703.63,0.28424029]
[1735720706499,0.26145819,704.6,703.63,0.28424029]
[1735720706797,0.26145819,704.59,703.63,0.28424029]
[1735720706997,0.26145819,704.58,703.63,0.28424029]
[1735720707196,0.26145819,704.57,703.63,0.28424029]
[1735720707396,1.05985319,704.64,703.63,0.28424029]
[1735720707597,0.26146125,704.63,703.63,0.28424029]
[1735720707799,1.05985319,704.59,703.63,0.28424029]
[1735720708697,0.26146083,704.58,703.63,0.28424029]
[1735720709296,1.05985319,704.64,703.63,0.28424029]
[1735720709499,0.26145941,704.63,703.63,0.28424029]
[1735720710103,1.05985319,704.62,703.63,0.28424029]
[1735720710397,0.26145941,704.61,703.63,0.28424029]
[1735720710603,1.05985319,704.62,703.63,0.28424029]
[1735720710804,0.26146014,704.61,703.63,0.28424029]
[1735720711308,1.05985319,704.63,703.63,0.28424029]
[1735720711498,0.26146014,704.62,703.63,0.28424029]
[1735720713404,1.05985319,704.62,703.63,0.28424029]
[1735720713606,0.26145913,704.61,703.63,0.28424029]
[1735720714604,1.32131232,704.61,703.63,0.28424029]
[1735720714805,0.26145913,704.6,703.63,0.28424029]
[1735720715699,0.26145913,704.59,703.63,0.28424029]
[1735720715904,0.26145897,704.58,703.63,0.28424029]
[1735720716103,1.05985319,704.62,703.63,0.28424029]
[1735720716298,1.32131216,704.61,703.63,0.28424029]
[1735720716504,0.26145897,704.6,703.63,0.28424029]
[1735720717609,1.32131216,704.6,703.63,0.28424029]
[1735720717812,0.26145897,704.59,703.63,0.28424029]
[1735720718704,0.26145828,704.58,703.63,0.28424029]
[1735720719010,1.06202606,704.94,703.63,0.28424029]